bitfinex-derivatives/quotes_SOLF0:USTF0_20251023
["timestamp","ask_amount","ask_price","bid_price","bid_amount"]
[1761219948966,4.7819,188.18,188.11,2.63]
[1761219950060,4.7819,188.18,188.12,2.63]
[1761219950766,4.7822,188.17,188.12,2.63]
[1761219951164,2.51751579,188.16,188.08,2.63]
[1761219951464,4.7827,188.15,188.08,7.4143]
[1761219951664,4.7827,188.15,188.09,2.63]
[1761219956469,2.51751579,188.13,188.09,2.63]
[1761219956663,2.51751579,188.13,188.08,4.7843]
[1761219956968,2.51751579,188.13,188.09,2.63]
[1761219957569,7.30071579,188.13,188.09,2.63]
[1761219961875,7.30071579,188.13,188.06,4.7847]
[1761219961876,2.51751579,188.13,188.06,4.7847]
[1761219962072,2.51751579,188.13,188.06,7.5247]
[1761219963175,4.7837,188.11,188.07,2.74]
[1761219963578,4.7837,188.11,188.06,4.7847]
[1761219963773,2.51751579,188.1,188.06,4.7847]
[1761219964074,2.51751579,188.1,187.91,35.03]
[1761219964075,2.51751579,188.07,188.03,2.74]
[1761219964880,2.51751579,188.07,188.04,2.74]
[1761219965081,4.94174897,188.14,188.04,2.74]
[1761219965082,2.51751579,188.1,188.04,2.74]
[1761219966784,44.3,188.12,188.04,2.74]
[1761219966785,4.7842,188.09,188.04,2.74]
[1761219967081,15.96,188.14,188.04,2.74]
[1761219967082,2.51751579,188.14,188.04,2.74]
[1761219967770,2.51751579,188.14,188.01,2.51751579]
[1761219967771,4.7833,188.13,188.06,4.7847]
[1761219967977,4.7833,188.13,188.07,2.74]
[1761219969688,4.7835,188.12,188.07,2.74]
[1761219970479,2.51751579,188.11,188.07,2.74]
[1761219970891,2.51751579,188.11,188.04,4.7852]
[1761219971085,2.51751579,188.11,188.04,7.5252]
[1761219971288,2.51751579,188.11,188.05,2.74]
[1761219971988,4.7842,188.09,188.05,2.74]
[1761219973587,4.7842,188.09,188.05,4.7851]
[1761219973789,4.7842,188.09,188.06,2.74]
[1761219975194,4.7836,188.12,188.01,2.51751579]
[1761219975397,4.7836,188.12,188.02,2.74]
[1761219975604,2.51751579,188.14,188.04,2.51751579]
[1761219975898,2.51751579,188.14,188.05,2.74]
[1761219976694,9.90718235,188.23,187.99,9.5733]
[1761219976695,7.45125364,188.19,188.06,5.25751579]
[1761219976895,2.51751579,188.19,188.07,2.74]
[1761219977998,4.7825,188.16,188.1,4.7838]
[1761219978200,4.7825,188.16,188.1,7.5238]
[1761219978899,4.7825,188.16,188.1,2.74]
[1761219979197,4.7827,188.15,188.1,2.74]
[1761219980096,4.7827,188.15,188.07,2.74]
[1761219981104,4.7827,188.15,188.09,7.524]
[1761219982901,4.7831,188.14,188.07,7.5245]
[1761219983606,4.7831,188.14,188.08,2.74]
[1761219984502,4.7832,188.13,188.08,2.74]
[1761219984693,7.30071579,188.13,188.08,2.74]
[1761219984894,2.51751579,188.13,188.05,7.525]
[1761219985904,7.45125364,188.13,188.05,7.525]
[1761219986202,2.51751579,188.1,188.05,2.74]
[1761219986602,7.30151579,188.1,188.05,2.74]
[1761219986803,1.61256942,188.07,188.05,2.74]
[1761219987604,1.61256942,188.07,188.03,7.5555]
[1761219987909,1.61256942,188.07,188.03,4.7855]
[1761219988201,1.61256942,188.07,188.04,2.77]
[1761219989607,6.39726942,188.07,188.04,2.77]
[1761219989803,6.39726942,188.07,188.01,7.5361]
[1761219990008,1.61256942,188.05,188.01,7.5361]
[1761219990408,1.61256942,188.05,188.02,2.75]
[1761219994607,4.785,188.06,188.02,2.75]
[1761219994907,1.61256942,188.04,188.02,2.75]
[1761220001823,6.39806942,188.04,187.98,7.5368]
[1761220002015,1.61256942,188.02,187.98,4.7868]
[1761220002219,1.61256942,188.02,187.99,2.75]
[1761220002420,4.7855,188.04,187.99,2.75]
[1761220002616,1.61256942,188.01,187.99,2.75]
[1761220003510,1.61256942,188.01,187.94,0.92560577]
[1761220003511,1.61256942,188.01,187.95,2.75]
[1761220003714,20.89373785,188.08,187.97,2.75]
[1761220003715,1.61256942,187.99,187.97,2.75]
[1761220003923,1.61256942,188.01,187.97,2.75]
[1761220004626,1.61256942,188.01,187.98,2.75]
[1761220007624,6.39886942,188.01,187.98,2.75]
[1761220007817,1.61256942,187.99,187.9,2.75]
[1761220008016,1.61256942,187.95,187.9,2.75]
[1761220008224,69.8504,188.05,187.9,4.7888]
[1761220008225,1.61256942,187.93,187.9,4.7888]
[1761220008426,1.61256942,187.93,187.91,2.75]
[1761220008623,1.61256942,187.95,187.91,2.75]
[1761220009028,1.61256942,187.95,187.92,2.75]
[1761220009226,1.61256942,187.93,187.88,2.75]
[1761220010223,1.61256942,187.91,187.84,2.75]
[1761220011121,1.61256942,187.9,187.85,2.75]
[1761220012820,1.61256942,187.88,187.85,2.75]
[1761220014424,1.61256942,187.86,187.81,0.92617235]
[1761220014619,1.61256942,187.86,187.82,2.75]
[1761220015031,1.61256942,187.86,187.77,0.92640658]
[1761220015032,1.61256942,187.84,187.79,2.75]
[1761220015223,1.61256942,187.82,187.79,2.75]
[1761220015631,1.61256942,187.86,187.79,2.75]
[1761220017735,1.61256942,187.84,187.79,2.75]
[1761220020332,1.61256942,187.82,187.79,2.75]
[1761220021237,9.5767,187.93,187.72,0.92654224]
[1761220021238,4.93373785,188.01,187.82,2.82]
[1761220021433,1.61256942,187.92,187.84,2.82]
[1761220021630,1.61256942,187.94,187.87,2.82]
[1761220021832,15.86614471,188.08,187.93,2.82]
[1761220022027,4.93373785,188.14,187.97,2.82]
[1761220022332,1.61256942,187.99,187.93,2.82]
[1761220022736,1.61256942,187.99,187.93,7.608]
[1761220022936,1.61256942,187.97,187.94,2.82]
[1761220023140,1.61256942,187.97,187.89,2.82]
[1761220023829,1.61256942,187.95,187.89,2.82]
[1761220024238,1.61256942,187.95,187.89,4.43256942]
[1761220024534,1.61256942,187.95,187.89,2.82]
[1761220025435,4.7882,187.94,187.89,2.82]
[1761220026141,4.7882,187.94,187.86,4.43256942]
[1761220026442,4.7882,187.94,187.87,2.82]
[1761220026739,1.61256942,187.91,187.83,7.6107]
[1761220027040,1.61256942,187.91,187.84,2.82]
[1761220027237,4.788,187.94,187.88,2.82]
[1761220027737,1.61256942,187.93,187.87,6.942e-05]
[1761220027938,15.96,187.91,187.8,2.82]
[1761220028139,1.61256942,187.94,187.86,1.61256942]
[1761220028344,1.61256942,187.92,187.84,1.61256942]
[1761220029034,1.61256942,187.92,187.81,2.82]
[1761220029235,1.61256942,187.92,187.83,4.43256942]
[1761220029941,4.7895,187.89,187.83,2.82]
[1761220030448,1.61256942,187.93,187.85,2.82]
[1761220030740,6.40126942,187.91,187.85,2.82]
[1761220032340,6.40256942,187.87,187.8,2.82]
[1761220032948,4.7893,187.89,187.8,4.7914]
[1761220033151,6.40186942,187.89,187.81,2.82]
[1761220033341,6.40186942,187.89,187.82,1.61256942]
[1761220033544,1.61256942,187.87,187.82,2.82]
[1761220035247,1.61256942,187.85,187.82,2.82]
[1761220035445,4.7898,187.87,187.82,2.82]
[1761220035653,1.61256942,187.85,187.82,2.82]
[1761220036246,4.7903,187.85,187.78,2.82]
[1761220036450,1.61256942,187.82,187.78,2.82]
[1761220037047,1.61256942,187.8,187.74,7.613]
[1761220037355,1.61256942,187.8,187.74,2.82]
[1761220037653,1.61256942,187.78,187.74,2.82]
[1761220039251,1.61256942,187.78,187.72,2.82]
[1761220040355,6.40476942,187.78,187.72,2.82]
[1761220040555,15.97,187.84,187.72,2.82]
[1761220040756,1.61256942,187.78,187.72,2.82]
[1761220040955,1.61256942,187.74,187.65,1.61256942]
[1761220041253,1.61256942,187.74,187.66,2.82]
[1761220041453,1.61256942,187.74,187.68,2.82]
[1761220042045,6.40576942,187.74,187.68,2.82]
[1761220042252,15.97,187.81,187.68,2.82]
[1761220042448,4.7922,187.78,187.7,2.82]
[1761220042648,1.61256942,187.75,187.7,2.82]
[1761220043252,4.7922,187.78,187.7,2.82]
[1761220043560,1.61256942,187.76,187.7,2.82]
[1761220043752,4.7922,187.78,187.7,7.6139]
[1761220043951,4.7922,187.78,187.7,1.61256942]
[1761220043952,1.61256942,187.78,187.7,1.61256942]
[1761220044250,1.61256942,187.78,187.71,2.82]
[1761220044453,1.61256942,187.78,187.73,2.82]
[1761220044652,1.61256942,187.8,187.73,2.82]
[1761220044854,4.7914,187.81,187.73,7.6131]
[1761220045056,1.61256942,187.8,187.74,2.82]
[1761220045258,49.33,187.87,187.65,2.76]
[1761220045259,1.61256942,187.78,187.65,2.76]
[1761220045465,1.61256942,187.76,187.68,2.76]
[1761220045952,15.97,187.85,187.68,2.76]
[1761220046156,1.61256942,187.75,187.68,2.76]
[1761220046853,4.7927,187.76,187.68,2.76]
[1761220047552,4.7927,187.76,187.7,2.76]
[1761220047752,2.52859077,187.77,187.7,2.76]
[1761220048252,7.32099077,187.77,187.7,2.76]
[1761220048758,2.52859077,187.77,187.7,2.76]
[1761220049253,2.52859077,187.77,187.63,2.52859077]
[1761220049254,2.52859077,187.77,187.67,2.74]
[1761220049954,7.32099077,187.77,187.69,7.5342]
[1761220050350,4.7924,187.77,187.7,2.74]
[1761220050952,4.7928,187.76,187.7,2.74]
[1761220051658,4.7929,187.75,187.69,4.7942]
[1761220051955,7.32149077,187.75,187.69,4.7942]
[1761220053160,7.32149077,187.75,187.7,2.74]
[1761220054056,4.7929,187.75,187.7,2.74]
[1761220056559,4.7922,187.78,187.71,4.7936]
[1761220056751,2.52859077,187.8,187.7,2.74]
[1761220057264,2.52859077,187.8,187.75,2.74]
[1761220057265,7.32029077,187.8,187.75,2.74]
[1761220057464,2.52859077,187.8,187.75,2.74]
[1761220057764,2.52859077,187.83,187.75,2.74]
[1761220058863,2.52859077,187.88,187.77,2.74]
[1761220059363,2.52859077,187.85,187.77,2.74]
[1761220060961,2.52859077,187.86,187.78,7.5319]
[1761220061161,2.52859077,187.86,187.79,2.74]
[1761220061762,2.52859077,187.9,187.78,2.74]
[1761220062468,4.7887,187.92,187.83,4.7906]
[1761220062767,4.7887,187.92,187.84,2.74]
[1761220063358,7.31659077,187.94,187.84,2.74]
[1761220063559,4.788,187.94,187.84,2.74]
[1761220064065,2.52859077,187.92,187.84,2.74]
[1761220064964,4.7889,187.91,187.8,5.26859077]
[1761220065166,4.7889,187.91,187.81,2.74]
[1761220065373,2.52859077,187.91,187.81,2.74]
[1761220067072,4.7893,187.89,187.81,7.5312]
[1761220067269,60.81,187.96,187.81,2.74]
[1761220067270,2.52859077,187.88,187.81,2.74]
[1761220067473,2.52859077,187.88,187.69,78.20542446]
[1761220067474,2.52859077,187.88,187.78,2.74]
[1761220067873,2.52859077,187.92,187.79,2.74]
[1761220068967,4.7889,187.91,187.82,7.5308]
[1761220069162,4.7889,187.91,187.83,2.74]
[1761220070668,4.7889,187.91,187.84,2.74]
[1761220075272,4.7889,187.91,187.84,4.7903]
[1761220075466,4.7889,187.91,187.85,2.74]
[1761220075876,4.7889,187.91,187.85,7.5301]
[1761220076189,18.49859077,187.95,187.74,18.73131523]
[1761220076190,4.7883,187.93,187.86,2.74]
[1761220076389,4.7883,187.93,187.86,7.5299]
[1761220076587,4.93373785,188.0,187.87,2.74]
[1761220076889,2.52859077,188.0,187.92,2.74]
[1761220077291,4.7871,187.98,187.92,2.74]
[1761220077991,2.52859077,187.93,187.88,2.74]
[1761220078193,15.97,188.0,187.88,2.74]
[1761220078392,2.52859077,187.96,187.88,2.74]
[1761220079988,2.52859077,187.96,187.89,4.7891]
[1761220080190,2.52859077,187.96,187.89,2.8]
[1761220081193,2.52859077,187.96,187.92,2.8]
[1761220081795,2.52859077,187.97,187.92,2.8]
[1761220082597,60.93,188.05,187.92,7.5883]
[1761220082797,2.52859077,187.98,187.92,7.5883]
[1761220083590,15.97,188.06,187.93,7.588]
[1761220083789,2.52859077,188.05,187.94,2.8]
[1761220084184,4.7852,188.05,187.97,4.7871]
[1761220084387,7.31379077,188.05,187.97,7.5871]
[1761220084789,2.52859077,188.05,187.97,7.5871]
[1761220085591,2.52859077,188.05,187.99,2.8]
[1761220087192,7.31389077,188.05,187.99,2.8]
[1761220089798,2.52859077,188.02,187.95,7.5874]
[1761220090604,2.52859077,187.99,187.95,2.8]
[1761220093294,4.7861,188.02,187.95,2.8]
[1761220093295,2.52859077,188.0,187.95,2.8]
[1761220093495,2.52859077,188.01,187.95,2.8]
[1761220094698,4.7861,188.02,187.95,2.8]
[1761220094895,2.52859077,188.0,187.95,2.8]
[1761220095103,2.52859077,188.0,187.97,2.8]
[1761220095898,2.52859077,188.01,187.97,2.8]
[1761220096401,2.52859077,188.0,187.97,2.8]
[1761220097307,7.31509077,188.0,187.94,7.5878]
[1761220097498,2.52859077,187.97,187.9,2.8]
[1761220098202,2.52859077,187.97,187.94,2.8]
[1761220098904,2.52859077,187.98,187.94,2.8]
[1761220099611,2.52859077,187.98,187.91,4.7887]
[1761220099913,2.52859077,187.95,187.87,2.8]
[1761220101111,2.52859077,187.95,187.89,7.5891]
[1761220101406,2.52859077,187.95,187.89,2.8]
[1761220101910,4.7873,187.97,187.89,2.8]
[1761220102104,2.52859077,187.94,187.89,2.8]
[1761220103013,2.52859077,187.94,187.91,2.8]
[1761220104311,2.52859077,187.94,187.91,4.7886]
[1761220104616,2.52859077,187.94,187.92,2.8]
[1761220105015,7.31589077,187.97,187.92,2.8]
[1761220105917,7.31589077,187.97,187.91,4.7886]
[1761220106213,4.7875,187.96,187.89,7.4191]
[1761220106507,4.7875,187.96,187.89,2.63]
[1761220107314,2.52859077,187.95,187.89,2.63]
[1761220108014,2.52859077,187.95,187.9,7.4189]
[1761220108410,2.52859077,187.95,187.9,4.7889]
[1761220108617,2.52859077,187.95,187.91,2.63]
[1761220108911,1.61510339,187.93,187.91,2.63]
[1761220114815,1.61510339,187.95,187.91,2.63]
[1761220121824,4.7871,187.98,187.91,7.4185]
[1761220122030,6.40220339,187.98,187.92,2.81]
[1761220126031,6.40220339,187.98,187.93,2.81]
[1761220128526,4.7871,187.98,187.94,2.81]
[1761220131032,1.61510339,187.97,187.94,2.81]
[1761220133930,1.61510339,187.97,187.93,7.5981]
[1761220134235,1.61510339,187.95,187.88,2.81]
[1761220134735,1.61510339,187.93,187.88,2.81]
[1761220134926,4.91529011,187.99,187.9,4.7889]
[1761220134927,1.61510339,187.95,187.9,4.7889]
[1761220135237,1.61510339,187.95,187.91,2.81]
[1761220136333,6.40290339,187.95,187.91,2.81]
[1761220141340,1.61510339,187.96,187.92,2.77]
[1761220142038,6.40260339,187.96,187.92,2.77]
[1761220147141,1.61510339,187.94,187.88,4.7893]
[1761220147342,1.61510339,187.92,187.86,2.77]
[1761220147643,6.60478823,187.97,187.86,2.77]
[1761220147644,1.61510339,187.87,187.86,2.77]
[1761220150635,1.61510339,187.89,187.86,7.5598]
[1761220151644,1.61510339,187.89,187.87,2.77]
[1761220153652,1.61510339,187.91,187.87,2.77]
[1761220156148,1.61510339,187.91,187.87,7.5596]
[1761220156452,1.61510339,187.91,187.88,2.77]
[1761220157044,4.93726676,187.96,187.91,2.77]
[1761220157249,6.55237015,188.01,187.94,2.77]
[1761220157548,1.61510339,187.99,187.94,2.77]
[1761220158350,9.72356676,188.01,187.94,2.77]
[1761220158549,1.61510339,188.0,187.94,2.77]
[1761220158946,1.61510339,188.0,187.94,7.5578]
[1761220159452,1.61510339,188.0,187.95,2.77]
[1761220159955,6.40160339,188.0,187.95,2.77]
[1761220162357,4.7868,187.99,187.95,2.77]
[1761220162951,1.61510339,187.98,187.95,2.77]
[1761220167562,1.61510339,188.01,187.95,2.77]
[1761220168160,4.93726676,188.05,187.93,9.5765]
[1761220168355,1.61510339,188.04,187.98,2.84]
[1761220168857,2.52106173,188.06,187.98,2.84]
[1761220169458,2.52106173,188.06,187.98,7.6268]
[1761220169665,2.52106173,188.03,187.98,7.6268]
[1761220169862,2.52106173,188.03,187.99,2.68]
[1761220171665,4.7855,188.04,187.99,2.68]
[1761220172367,7.30606173,188.06,187.99,2.68]
[1761220173063,4.785,188.06,187.97,2.68]
[1761220173267,4.7845,188.08,187.97,2.68]
[1761220173964,4.7845,188.08,188.0,4.7863]
[1761220174165,4.7848,188.07,188.01,2.68]
[1761220174865,2.52106173,188.09,187.96,2.68]
[1761220176065,4.7845,188.08,188.02,2.68]
[1761220176269,2.52106173,188.09,188.02,2.68]
[1761220177970,4.7848,188.07,188.02,2.68]
[1761220178471,2.52106173,188.03,187.9,2.68]
[1761220179465,2.52106173,188.0,187.94,2.68]
[1761220180163,2.52106173,188.0,187.95,2.68]
[1761220180858,63.06726676,188.06,187.93,2.52106173]
[1761220180859,4.7858,188.03,187.93,2.52106173]
[1761220181060,4.7858,188.03,187.94,2.68]
[1761220182079,4.7858,188.03,187.97,2.68]
[1761220182269,4.786,188.02,187.97,2.68]
[1761220183273,4.7856,188.04,187.94,2.68]
[1761220183467,42.16,188.06,187.94,2.68]
[1761220185172,4.7853,188.05,187.99,2.68]
[1761220185573,4.7848,188.07,187.97,2.68]
[1761220187175,4.7848,188.07,188.0,7.4663]
[1761220187873,4.7848,188.07,188.01,2.68]
[1761220191478,37.76106173,188.1,187.98,4.7868]
[1761220191682,2.52106173,188.07,187.98,4.7868]
[1761220191880,2.52106173,188.07,187.97,2.68]
[1761220192982,4.7853,188.05,187.99,4.7866]
[1761220193181,4.7853,188.05,187.99,7.4666]
[1761220198979,2.52106173,188.04,187.99,7.4666]
[1761220199181,2.52106173,188.04,188.0,2.9]
[1761220200477,2.52106173,188.04,187.97,7.6871]
[1761220200885,2.52106173,188.04,187.98,2.9]
[1761220201081,2.52106173,188.04,187.9,9.15306448]
[1761220201082,2.52106173,188.04,187.95,4.7876]
[1761220201274,20.90726676,188.07,187.95,4.7876]
[1761220201275,2.52106173,188.01,187.95,4.7876]
[1761220201479,2.52106173,188.01,187.96,2.9]
[1761220202089,7.30736173,188.01,187.96,2.9]
[1761220207294,4.7858,188.03,187.97,2.9]
[1761220207489,49.39726676,188.08,187.97,2.9]
[1761220207683,2.52106173,188.06,187.97,2.9]
[1761220208389,4.7855,188.04,187.99,2.9]
[1761220212594,7.30606173,188.06,188.0,2.9]
[1761220213696,4.7853,188.05,188.0,2.9]
[1761220213895,7.45832849,188.06,188.0,2.9]
[1761220214099,4.7855,188.04,188.0,2.9]
[1761220217406,7.47898941,188.06,188.0,2.9]
[1761220217609,12.26298941,188.1,188.0,2.9]
[1761220217808,2.52106173,188.07,188.0,2.9]
[1761220218015,2.52106173,188.04,187.95,2.9]
[1761220220119,2.52106173,188.04,188.0,2.9]
[1761220220526,2.52106173,188.04,187.97,2.9]
[1761220220817,2.52106173,188.01,187.95,4.7875]
[1761220221011,7.30746173,188.01,187.95,4.7875]
[1761220221214,2.52106173,187.98,187.89,2.9]
[1761220221618,2.52106173,187.98,187.92,4.7883]
[1761220221817,2.52106173,187.98,187.93,2.9]
[1761220223827,2.52106173,187.95,187.9,2.9]
[1761220225923,2.52106173,187.95,187.91,2.74]
[1761220228619,2.52106173,187.95,187.84,2.69]
[1761220229021,4.7874,187.97,187.76,137.86]
[1761220229022,2.52106173,187.92,187.87,2.69]
[1761220229724,2.52106173,187.96,187.87,2.69]
[1761220230421,2.52106173,187.96,187.87,4.7895]
[1761220230623,2.52106173,187.96,187.88,2.69]
[1761220230919,1.61498797,187.92,187.88,7.4793]
[1761220231117,1.61498797,187.9,187.85,2.69]
[1761220231511,4.95792768,187.98,187.82,1.61498797]
[1761220231717,1.61498797,187.9,187.86,2.69]
[1761220233023,1.61498797,187.94,187.88,2.69]
[1761220233622,1.61498797,187.92,187.89,2.69]
[1761220234824,1.61498797,187.93,187.89,2.69]
[1761220235026,1.61498797,187.93,187.9,2.69]
[1761220239226,4.787,187.98,187.9,7.4788]
[1761220239424,1.61498797,187.96,187.91,2.69]
[1761220241022,1.61498797,187.96,187.92,2.69]
[1761220241218,4.787,187.98,187.92,2.69]
[1761220241219,1.61498797,187.94,187.92,2.69]
[1761220242426,1.61498797,187.94,187.89,2.69]
[1761220242627,1.61498797,187.92,187.89,2.69]
[1761220244133,4.7878,187.95,187.89,2.69]
[1761220244432,1.61498797,187.92,187.89,2.69]
[1761220247936,49.43792768,188.0,187.89,2.69]
[1761220248137,49.43792768,188.0,187.79,19.53160412]
[1761220248138,1.61498797,187.93,187.88,2.69]
[1761220248738,1.61498797,187.93,187.88,4.7894]
[1761220248933,1.61498797,187.93,187.89,2.69]
[1761220251045,6.40328797,187.93,187.89,2.69]
[1761220251540,1.61498797,187.91,187.89,2.69]
[1761220252343,1.61498797,187.91,187.81,2.69]
[1761220252547,1.61498797,187.89,187.82,2.69]
[1761220252838,1.61498797,187.89,187.87,2.69]
[1761220253944,1.61498797,187.89,187.85,2.69]
[1761220254941,1.61498797,187.87,187.8,2.69]
[1761220256049,1.61498797,187.85,187.77,2.69]
[1761220256344,1.61498797,187.81,187.77,2.69]
[1761220256534,25.72,187.91,187.77,2.69]
[1761220256535,1.61498797,187.79,187.77,2.69]
[1761220257337,1.61498797,187.79,187.74,2.69]
[1761220257543,1.61498797,187.77,187.74,2.69]
[1761220258145,4.93641075,187.87,187.74,2.69]
[1761220258346,1.61498797,187.78,187.74,2.69]
[1761220259342,1.61498797,187.78,187.75,2.83]
[1761220260048,1.61498797,187.82,187.76,2.83]
[1761220260250,4.7905,187.85,187.76,2.83]
[1761220260448,1.61498797,187.83,187.76,2.83]
[1761220260647,4.7905,187.85,187.76,2.83]
[1761220260849,1.61498797,187.83,187.76,2.83]
[1761220261150,4.7905,187.85,187.76,2.83]
[1761220261151,1.61498797,187.81,187.76,2.83]
[1761220261849,1.61498797,187.81,187.78,2.83]
[1761220262147,1.61498797,187.83,187.78,2.83]
[1761220262953,1.61498797,187.83,187.78,7.6218]
[1761220263155,1.61498797,187.83,187.79,2.83]
[1761220266956,1.61498797,187.83,187.79,4.7916]
[1761220267157,1.61498797,187.83,187.8,2.83]
[1761220270955,1.61498797,187.81,187.72,0.92617235]
[1761220271151,1.61498797,187.81,187.63,19.53940412]
[1761220271152,1.61498797,187.76,187.73,2.83]
[1761220271862,1.61498797,187.81,187.68,0.92699884]
[1761220272055,1.61498797,187.72,187.67,2.83]
[1761220272356,1.61498797,187.74,187.67,2.83]
[1761220272754,1.61498797,187.74,187.69,4.7943]
[1761220272955,1.61498797,187.74,187.7,2.83]
[1761220273157,4.7925,187.77,187.7,2.83]
[1761220273457,1.61498797,187.74,187.7,2.83]
[1761220276357,1.61498797,187.72,187.7,2.83]
[1761220276563,1.61498797,187.72,187.68,2.83]
[1761220276764,1.61498797,187.7,187.68,2.83]
[1761220277253,1.61498797,187.7,187.67,7.6248]
[1761220277564,1.61498797,187.7,187.68,2.83]
[1761220278161,1.61498797,187.71,187.68,2.83]
[1761220278462,1.61498797,187.69,187.65,2.83]
[1761220278662,1.61498797,187.67,187.65,2.83]
[1761220278860,1.61498797,187.67,187.6,2.83]
[1761220279475,1.61498797,187.67,187.64,2.83]
[1761220279657,4.7943,187.7,187.64,2.83]
[1761220279962,1.61498797,187.68,187.64,2.83]
[1761220280756,1.61498797,187.68,187.61,4.7963]
[1761220280757,1.61498797,187.68,187.62,2.83]
[1761220281167,1.61498797,187.64,187.62,2.83]
[1761220281959,1.06,187.63,187.58,4.54104563]
[1761220282158,22.05,187.74,187.51,4.44498797]
[1761220282159,1.61498797,187.59,187.51,4.44498797]
[1761220282360,1.61498797,187.59,187.55,2.83]
[1761220282656,15.97,187.73,187.55,2.83]
[1761220282856,9.5855,187.76,187.57,2.83]
[1761220282857,4.7952,187.66,187.57,2.83]
[1761220283170,1.61498797,187.65,187.57,2.83]
[1761220284467,0.15059,187.69,187.55,2.83]
[1761220284668,1.61498797,187.64,187.56,2.83]
[1761220284872,0.15059,187.69,187.44,74.6762]
[1761220284873,4.795,187.67,187.58,4.797]
[1761220285063,1.61498797,187.63,187.59,2.83]
[1761220285569,0.15059,187.69,187.54,2.54261692]
[1761220285570,1.61498797,187.61,187.57,2.63]
[1761220286166,1.61498797,187.6,187.57,2.63]
[1761220287069,1.61498797,187.62,187.57,2.63]
[1761220287368,1.61498797,187.58,187.55,2.63]
[1761220288162,4.7961,187.63,187.55,2.63]
[1761220288368,1.61498797,187.59,187.55,2.63]
[1761220289469,1.61498797,187.57,187.55,2.73]
[1761220290070,1.61498797,187.58,187.55,2.73]
[1761220292066,0.15059,187.69,187.56,2.73]
[1761220292273,1.61498797,187.63,187.56,2.73]
[1761220292572,1.61498797,187.63,187.57,4.7973]
[1761220292769,7.32723329,187.65,187.58,2.73]
[1761220292971,2.53163329,187.66,187.57,2.73]
[1761220293170,7.32703329,187.66,187.58,7.5271]
[1761220293475,0.15059,187.69,187.58,2.73]
[1761220293476,2.53163329,187.63,187.58,2.73]
[1761220294562,4.7958,187.64,187.58,2.73]
[1761220294771,7.32743329,187.64,187.57,4.7973]
[1761220294975,7.32743329,187.64,187.57,7.5273]
[1761220295776,4.7953,187.66,187.57,7.5273]
[1761220295976,2.53163329,187.63,187.57,7.5273]
[1761220296975,4.7957,187.64,187.57,7.5273]
[1761220297173,2.53163329,187.63,187.57,7.5273]
[1761220297979,0.15059,187.69,187.57,7.5273]
[1761220298275,2.53163329,187.64,187.58,2.73]
[1761220298477,2.53163329,187.64,187.58,7.5271]
[1761220299075,2.53163329,187.64,187.58,4.7971]
[1761220301375,2.53163329,187.64,187.56,2.73]
[1761220301976,2.53163329,187.62,187.56,7.5276]
[1761220302164,4.7961,187.63,187.56,7.5276]
[1761220302364,2.53163329,187.62,187.57,7.5273]
[1761220302579,2.53163329,187.62,187.58,2.73]
[1761220302779,15.97,187.68,187.58,2.73]
[1761220302780,7.32723329,187.65,187.58,2.73]
[1761220304474,2.53163329,187.65,187.58,2.73]
[1761220304779,4.7958,187.64,187.58,2.73]
[1761220305777,2.53163329,187.65,187.58,2.73]
[1761220307981,4.7958,187.64,187.58,2.73]
[1761220310481,15.97,187.68,187.58,2.73]